Cogmind - Beta 9.6 @@@ ROGUE MODE // 2020.07.20 @ 21:38:33 Player: Mr.Manatee Result: Destroyed by Alpha 7 with Multirail Performance ------------- Evolutions (7) 3500 Regions Visited (15) 3000 Robots Destroyed (17) 85 Value Destroyed (1084) 1084 Prototype IDs (37) 740 Alien Tech Used (0) 0 Bonus (3208) 3208 TOTAL SCORE: 11617 Bonus ------- Pacifist 834 Follower Combat Kills 74 Met Data Miner 300 Acquired SGEMP 2000 Cogmind --------- Core Integrity 0/1300 Matter 29/300 Energy 41/100 System Corruption 27% Temperature Cool (0) Movement Flying (30) Location -3/Testing Parts ------- > --- POWER (1) -------- (None) > --- PROPULSION (2) --- Improved Diametric Drive > --- UTILITY (16) ----- Spectral Analyzer Advanced Signal Interpreter Advanced Salvage Targeting Computer Advanced Targeting Computer Advanced Launcher Guidance Computer Advanced Target Analyzer Advanced Transmission Jammer Improved System Shield Advanced System Shield > --- WEAPON (2) ------- (None) > --- INVENTORY (4) ---- Energy Well (120) Z-bomb Delivery System SGEMP Prototype Peak State ------------ > --- POWER ------------ Compact Particle Reactor > --- PROPULSION ------- Improved Antigrav System Improved Antigrav System > --- UTILITY ---------- Compact Battery Enhanced Optical Array Advanced Signal Interpreter Advanced Salvage Targeting Computer Advanced Targeting Computer Advanced Targeting Computer Advanced Launcher Guidance Computer Advanced Target Analyzer Advanced Transmission Jammer Advanced ECM Suite Improved Phase Shifter Centrium Heavy Armor Plating Improved System Shield Advanced System Shield Advanced System Shield > --- WEAPON ----------- Hypervelocity Multirail Tesla Bomb Launcher > --- INVENTORY -------- Antimatter Reactor Improved Diametric Drive Energy Well Z-bomb Delivery System [Rating: 137] Favorites ----------- Power Compact Particle Reactor Engine Light Angular Momentum Engine Power Core Light Nuclear Core Reactor Compact Particle Reactor Propulsion Cesium-ion Thruster Hover Unit Improved Antigrav System Flight Unit Cesium-ion Thruster Utility Advanced Targeting Computer Device Cloaking Device Storage Compact Battery Processor Advanced Targeting Computer Hackware Improved System Shield Protection Improved Propulsion Shielding Weapon Helical Railgun Energy Gun Gamma Rifle Energy Cannon HERF Cannon Ballistic Gun Helical Railgun Ballistic Cannon Light Antimatter Cannon Launcher Tesla Bomb Launcher Special Weapon Plasma Cutter Build | -11 -10 -9 -8 -7 -7 -7 -7 -6 -6 -6 -6 -5 -4 -3 -3 ------- Run | Scr Mat Mat Mat Fac Low Low Dat Pro Fac Was Fac Fac Fac Res Tes Slots Evolved 14 | . . 2 2 2 . . . . 2 . . 2 2 2 . Power . | . . . . . . . . . . . . . . . . Propulsion . | . . . . . . . . . . . . . . . . Utility 14 | . . 2 2 2 . . . . 2 . . 2 2 2 . Weapon . | . . . . . . . . . . . . . . . . Parts Attached 104 | 1 2 2 1 12 3 . . 3 . 1 14 6 12 2 45 Power 13 | 1 . . . 2 1 . . . . . 2 . 3 1 3 Engine 5 | 1 . . . 2 . . . . . . 1 . 1 . . Core 2 | . . . . . 1 . . . . . 1 . . . . Reactor 6 | . . . . . . . . . . . . . 2 1 3 Propulsion 27 | . 1 . . 2 . . . . . . 4 . 4 1 15 Treads . | . . . . . . . . . . . . . . . . Leg . | . . . . . . . . . . . . . . . . Wheel . | . . . . . . . . . . . . . . . . Hover 9 | . . . . . . . . . . . 1 . . . 8 Flight 18 | . 1 . . 2 . . . . . . 3 . 4 1 7 Utility 41 | . 1 . 1 5 . . . 3 . 1 6 5 2 . 17 Device 13 | . . . . 1 . . . 1 . 1 2 1 2 . 5 Storage 4 | . . . . . . . . 1 . . . . . . 3 Processor 17 | . 1 . 1 3 . . . 1 . . 2 3 . . 6 Hackware 5 | . . . . 1 . . . . . . 1 1 . . 2 Protection 2 | . . . . . . . . . . . 1 . . . 1 Artifact . | . . . . . . . . . . . . . . . . Weapon 23 | . . 2 . 3 2 . . . . . 2 1 3 . 10 Energy Gun 5 | . . 1 . 1 . . . . . . . . 2 . 1 Energy Cannon 2 | . . . . . . . . . . . . . 1 . 1 Ballistic Gun 2 | . . . . . . . . . . . . . . . 2 Ballistic Cannon 2 | . . . . . . . . . . . 1 . . . 1 Launcher 11 | . . . . 2 2 . . . . . 1 1 . . 5 Special Weapon 1 | . . 1 . . . . . . . . . . . . . Impact Weapon . | . . . . . . . . . . . . . . . . Slashing Weapon . | . . . . . . . . . . . . . . . . Piercing Weapon . | . . . . . . . . . . . . . . . . Special Melee Weapon . | . . . . . . . . . . . . . . . . Unidentified Prototypes 18 | . . 1 . 1 . . . . . 1 . . 1 . 14 Parts Lost 27 | . . 1 1 4 1 . . . . . 2 6 2 . 10 Power 4 | . . . 1 . . . . . . . 1 1 . . 1 Propulsion 8 | . . . . 2 . . . . . . . 2 1 . 3 Utility 12 | . . . . 1 1 . . . . . 1 3 1 . 5 Weapon 3 | . . 1 . 1 . . . . . . . . . . 1 Highest Loss Streak 9 | . . 1 1 2 1 . . . . . 1 3 2 . 9 Average Slot Usage (%) 62 | . 29 40 34 28 57 53 53 60 53 53 66 77 63 57 70 Engine 1 | . 14 11 7 . 6 . . . . . 2 2 . . . Core 1 | . . . . . . 7 7 7 6 6 1 . . . . Reactor 1 | . . . . . . . . . . . . . 1 4 3 Flight 6 | . 5 11 9 3 7 7 7 7 6 6 8 9 7 9 3 Device 7 | . . . . 1 7 7 7 7 6 6 9 10 11 4 8 Processor 33 | . 10 11 18 18 30 30 30 37 33 33 34 41 36 33 35 Hackware 4 | . . . . 3 3 . . . . . 4 5 5 4 7 Protection 1 | . . . . . . . . . . . 3 4 . . . Naked Turns . | . . . . . . . . . . . . . . . . Heaviest Build 66 | 3 3 4 3 6 6 6 6 6 6 6 13 13 15 17 66 Greatest Support 34 | 3 4 4 4 6 6 6 6 6 6 6 15 15 18 18 34 Greatest Overweight (x) 8 | . . . . . . . . . . . 1 1 . . 8 Average Overweight (x) . | . . . . . . . . . . . . . . . . Largest Inventory Capacity 4 | 4 4 4 4 4 4 4 4 4 4 4 4 4 4 4 4 Average Capacity 4 | 4 4 4 4 4 4 4 4 4 4 4 4 4 4 4 4 Most Carried 4 | 4 4 4 4 4 4 4 4 4 4 4 4 4 4 4 4 Average Carried 3 | 2 4 3 4 3 3 4 4 4 4 4 3 3 3 4 3 Final Capacity 4 | 4 4 4 4 4 4 4 4 4 4 4 4 4 4 4 4 Final Carried 4 | 4 4 4 4 3 4 4 4 4 4 4 4 4 4 4 4 Class Distribution -------------------- 54% | Mutant 16% | Hacker-Mutant 15% | Scout 13% | Infiltrator-Mutant Dominant Class ---------------- Mutant | -10/Materials Mutant | -9/Materials Mutant | -8/Materials Mutant | -7/Factory Scout | -7/Lower Caves Scout | -7/Lower Caves Scout | -7/Data Miner Scout | -6/Proximity Caves Mutant | -6/Factory Mutant | -6/Waste Mutant | -6/Factory Mutant | -5/Factory Mutant | -4/Factory Mutant | -3/Research Hacker-Mutant | -3/Testing Resources | -11 -10 -9 -8 -7 -7 -7 -7 -6 -6 -6 -6 -5 -4 -3 -3 ----------- Run | Scr Mat Mat Mat Fac Low Low Dat Pro Fac Was Fac Fac Fac Res Tes Matter Collected 1464 | 202 . 38 . 4 86 34 . 163 . 31 43 110 97 . 656 Remotely . | . . . . . . . . . . . . . . . . Salvage Created 1000 | . . . . 29 . . . . . . 26 27 . . 918 Parts 60 | . . . . 3 . . . . . . . 2 . . 55 Haulers Intercepted 1 | . . . . . . . . . . . . . . . 1 Recyclers Shooed . | . . . . . . . . . . . . . . . . Parts Field Recycled . | . . . . . . . . . . . . . . . . Retrieved Matter . | . . . . . . . . . . . . . . . . Parts Self-Destructed 6 | . . . . . . . . 6 . . . . . . . Prevented . | . . . . . . . . . . . . . . . . Kills | -11 -10 -9 -8 -7 -7 -7 -7 -6 -6 -6 -6 -5 -4 -3 -3 ------- Run | Scr Mat Mat Mat Fac Low Low Dat Pro Fac Was Fac Fac Fac Res Tes Combat Hostiles Destroyed 14 | . . . . 2 . . . . . . 1 1 . . 10 Melee 1 | . . . . 1 . . . . . . . . . . . Guns 8 | . . . . . . . . . . . . . . . 8 Cannons 2 | . . . . . . . . . . . . . . . 2 AOE 3 | . . . . 1 . . . . . . 1 1 . . . Classes Destroyed 6 | . . . . 2 . . . . . . . . . . 4 Hauler 1 | . . . . . . . . . . . . . . . 1 Recycler 1 | . . . . . . . . . . . . . . . 1 Watcher 1 | . . . . . . . . . . . . . . . 1 Swarmer 2 | . . . . 1 . . . . . . . 1 . . . Hunter 3 | . . . . . . . . . . . . . . . 3 Programmer 9 | . . . . 1 . . . . . . 1 . . . 7 Best Kill Streak 3 | . . . . 1 . . . . . . 1 1 . . 3 Combat Bots Only 3 | . . . . 1 . . . . . . 1 1 . . 3 Max Kills in Single Turn 1 | . . . . 1 . . . . . . 1 1 . . 1 Gunslinging . | . . . . . . . . . . . . . . . . Exploded 1 | . . . . 1 . . . . . . 1 1 . . . Melee 1 | . . . . 1 . . . . . . . . . . . Uniques/NPCs Destroyed . | . . . . . . . . . . . . . . . . Combat | -11 -10 -9 -8 -7 -7 -7 -7 -6 -6 -6 -6 -5 -4 -3 -3 -------- Run | Scr Mat Mat Mat Fac Low Low Dat Pro Fac Was Fac Fac Fac Res Tes Damage Taken 6153 | . . 236 64 672 29 68 . 18 . . 774 646 398 128 3120 Core 3154 | . . 167 15 499 19 35 . 18 . . 478 383 227 78 1235 Absorbed by Shields . | . . . . . . . . . . . . . . . . Core Remaining (%) 69 | 100 100 58 97 . . . . 18 . . 43 61 80 . . Volleys Fired 61 | . . . . 8 3 . . . . . 1 1 4 . 44 Largest 1 | . . . . 1 1 . . . . . 1 1 1 . 1 Hottest 88 | . . . . 56 36 . . . . . 36 46 88 . 88 Shots Fired 61 | . . . . 8 3 . . . . . 1 1 4 . 44 Gun 41 | . . . . 4 . . . . . . . . 4 . 33 Cannon 9 | . . . . . . . . . . . . . . . 9 Launcher 11 | . . . . 4 3 . . . . . 1 1 . . 2 Special . | . . . . . . . . . . . . . . . . Kinetic 41 | . . . . . . . . . . . . . . . 41 Thermal 8 | . . . . 4 . . . . . . . . 4 . . Explosive 10 | . . . . 4 3 . . . . . 1 . . . 2 Electromagnetic 2 | . . . . . . . . . . . . 1 . . 1 Robot Hit Streak 18 | . . . . 3 . . . . . . . . 2 . 18 Robot Miss Streak 3 | . . . . 1 . . . . . . 1 . 1 . 3 Penetration Max 1 | . . . . . . . . . . . . . . . 1 Secondary Targets . | . . . . . . . . . . . . . . . . Shots Hit Robots 47 | . . . . 6 . . . . . . . . 3 . 38 Core Hits 34 | . . . . 4 2 . . . . . 3 1 1 . 23 Critical Hits 34 | . . . . . . . . . . . . . . . 34 Critical Kills 12 | . . . . . . . . . . . . . . . 12 Critical Parts Destroyed 22 | . . . . . . . . . . . . . . . 22 Melee Attacks . | . . . . . . . . . . . . . . . . Impact . | . . . . . . . . . . . . . . . . Slashing . | . . . . . . . . . . . . . . . . Piercing . | . . . . . . . . . . . . . . . . Sneak Attacks . | . . . . . . . . . . . . . . . . Combat Hostiles . | . . . . . . . . . . . . . . . . Follow-up Attacks . | . . . . . . . . . . . . . . . . Damage Inflicted 1244 | . . . . 185 24 . . . . . 167 57 77 . 734 Guns 500 | . . . . 34 . . . . . . . . 77 . 389 Cannons 332 | . . . . . . . . . . . . . . . 332 Explosions 397 | . . . . 149 24 . . . . . 167 57 . . . Melee . | . . . . . . . . . . . . . . . . Ramming 15 | . . . . 2 . . . . . . . . . . 13 Kinetic 721 | . . . . . . . . . . . . . . . 721 Thermal 237 | . . . . 34 . . . . . . 126 . 77 . . Explosive 214 | . . . . 149 24 . . . . . 41 . . . . Electromagnetic 57 | . . . . . . . . . . . . 57 . . . Impact . | . . . . . . . . . . . . . . . . Slashing . | . . . . . . . . . . . . . . . . Piercing . | . . . . . . . . . . . . . . . . Highest Corruption 27 | . . 1 . 4 4 4 4 4 . . 1 . . . 27 Average Corruption 3 | . . 1 . 3 4 4 4 4 . . 1 . . . 5 Corruption Purged . | . . . . . . . . . . . . . . . . Effects 52 | . . . . 7 3 3 . 9 . . 4 . . . 26 Message Errors 13 | . . . . 1 1 2 . 1 . . 1 . . . 7 Matter Fused 10 | . . . . 2 1 . . 4 . . . . . . 3 Heat Flow Errors 8 | . . . . 2 . 1 . 1 . . . . . . 4 Energy Discharges 6 | . . . . . . . . 1 . . 3 . . . 2 Data Loss (minor) 7 | . . . . 1 1 . . 2 . . . . . . 3 Misdirections 6 | . . . . . . . . . . . . . . . 6 Targeting Errors 2 | . . . . 1 . . . . . . . . . . 1 Overload Shots . | . . . . . . . . . . . . . . . . Overflow Damage 7 | . . . . . . . . . . . . . . . 7 Projectiles 7 | . . . . . . . . . . . . . . . 7 Explosions . | . . . . . . . . . . . . . . . . Melee . | . . . . . . . . . . . . . . . . Knockbacks 4 | . . . . . . . . . . . . . . . 4 Impact . | . . . . . . . . . . . . . . . . Kinetic 4 | . . . . . . . . . . . . . . . 4 Secondary . | . . . . . . . . . . . . . . . . Self-Inflicted Damage 94 | . . . . 1 . . . . . . 85 2 . . 6 Shots 3 | . . . . . . . . . . . 2 1 . . . Rammed 3 | . . . . 1 . . . . . . . . . . 2 Targets Rammed 3 | . . . . 1 . . . . . . . . . . 2 Kicked . | . . . . . . . . . . . . . . . . Crushed . | . . . . . . . . . . . . . . . . Highest Temperature 395 | . . . . 259 . 259 . 163 . . 1 . 24 . 395 Average Temperature 113 | . . . . 103 . 141 . 92 . . 1 . 13 . 131 Received Heat Transfer 789 | . . 78 18 174 . 36 . 9 . . 234 63 30 18 129 Effects 3 | . . . . . . . . . . . . . . . 3 Interference 3 | . . . . . . . . . . . . . . . 3 Siege Activations . | . . . . . . . . . . . . . . . . Robots Corrupted . | . . . . . . . . . . . . . . . . Combat Hostiles . | . . . . . . . . . . . . . . . . Parts Fried 1 | . . . . . . . . . . . . 1 . . . Impact Corruptions . | . . . . . . . . . . . . . . . . Robots Melted . | . . . . . . . . . . . . . . . . Combat Hostiles . | . . . . . . . . . . . . . . . . Parts Melted . | . . . . . . . . . . . . . . . . Heat Transferred 235 | . . . . 74 . . . . . . 50 . 111 . . Parts Sabotaged . | . . . . . . . . . . . . . . . . Parts Stolen . | . . . . . . . . . . . . . . . . Parts Stripped . | . . . . . . . . . . . . . . . . Power Chain Reactions . | . . . . . . . . . . . . . . . . Missiles Intercepted . | . . . . . . . . . . . . . . . . Alert | -11 -10 -9 -8 -7 -7 -7 -7 -6 -6 -6 -6 -5 -4 -3 -3 ------- Run | Scr Mat Mat Mat Fac Low Low Dat Pro Fac Was Fac Fac Fac Res Tes Peak Influence 370 | . 29 116 90 370 . . . . 37 12 198 73 69 90 311 Average Influence 108 | . 13 62 69 272 . . . . 37 12 105 33 16 30 158 Maximum Alert Level 1 | . . . . 1 . . . . . . . . . . 1 Low Security (%) 85 | 100 100 100 100 11 . . . . 100 100 100 100 100 100 74 Level 1 14 | . . . . 88 . . . . . . . . . . 25 Level 2 . | . . . . . . . . . . . . . . . . Level 3 . | . . . . . . . . . . . . . . . . Level 4 . | . . . . . . . . . . . . . . . . Level 5 . | . . . . . . . . . . . . . . . . High Security . | . . . . . . . . . . . . . . . . Max Security . | . . . . . . . . . . . . . . . . Squads Dispatched 21 | . . 1 1 3 . . . . . . 2 4 3 . 7 Investigation 10 | . . . 1 3 . . . . . . 1 2 2 . 1 Extermination 7 | . . . . . . . . . . . 1 1 1 . 4 Reinforcement 4 | . . 1 . . . . . . . . . 1 . . 2 Assault . | . . . . . . . . . . . . . . . . Garrison . | . . . . . . . . . . . . . . . . Intercept . | . . . . . . . . . . . . . . . . Construction Impeded . | . . . . . . . . . . . . . . . . Haulers Reinforced 1 | . . . . . . . . . . . . . . . 1 Stealth | -11 -10 -9 -8 -7 -7 -7 -7 -6 -6 -6 -6 -5 -4 -3 -3 --------- Run | Scr Mat Mat Mat Fac Low Low Dat Pro Fac Was Fac Fac Fac Res Tes Distress Signals 6 | . 1 . . . . . . . . . 3 2 . . . Communications Jammed 49 | . . . . . . . . . . . . . 1 . 48 Distress Signals 49 | . . . . . . . . . . . . . 1 . 48 Times Spotted 236 | . 4 13 8 20 2 7 . 13 . . 62 23 18 2 64 Peak Tracking Total 14 | . 4 9 7 8 2 4 . 5 . . 13 11 9 2 14 Tactical Retreats 55 | . 1 4 . 8 1 2 . 1 . . 20 7 5 . 6 Traps | -11 -10 -9 -8 -7 -7 -7 -7 -6 -6 -6 -6 -5 -4 -3 -3 ------- Run | Scr Mat Mat Mat Fac Low Low Dat Pro Fac Was Fac Fac Fac Res Tes Traps Triggered 10 | . . 1 . 2 . . . . 1 . 1 2 1 . 2 Indirectly 2 | . . . . . . . . . . . . 2 . . . Trap Hack Attempts . | . . . . . . . . . . . . . . . . Triggered . | . . . . . . . . . . . . . . . . Disarmed . | . . . . . . . . . . . . . . . . Reprogrammed . | . . . . . . . . . . . . . . . . Reused . | . . . . . . . . . . . . . . . . Traps Extracted . | . . . . . . . . . . . . . . . . Installed . | . . . . . . . . . . . . . . . . Triggered . | . . . . . . . . . . . . . . . . Machines | -11 -10 -9 -8 -7 -7 -7 -7 -6 -6 -6 -6 -5 -4 -3 -3 ---------- Run | Scr Mat Mat Mat Fac Low Low Dat Pro Fac Was Fac Fac Fac Res Tes Machines Disabled 7 | . . . . . 2 . . . . . 1 . . . 4 Max in Single Turn 1 | . . . . . 1 . . . . . 1 . . . 1 Garrison Access 4 | . . . . 1 . . . . 1 . 1 1 . . . Machines Sabotaged . | . . . . . . . . . . . . . . . . Garrisons Compromised . | . . . . . . . . . . . . . . . . Overloaded Fab Kills . | . . . . . . . . . . . . . . . . Fab Network Shutdowns . | . . . . . . . . . . . . . . . . Hacking | -11 -10 -9 -8 -7 -7 -7 -7 -6 -6 -6 -6 -5 -4 -3 -3 --------- Run | Scr Mat Mat Mat Fac Low Low Dat Pro Fac Was Fac Fac Fac Res Tes Machines Accessed 63 | . 2 3 3 4 1 . 3 . 1 . 20 9 6 . 11 Terminals 36 | . 2 3 3 2 . . . . . . 12 7 2 . 5 Fabricators 9 | . . . . 1 . . . . . . 4 . 2 . 2 Repair Stations 4 | . . . . . . . . . . . 2 . . . 2 Recycling Units 3 | . . . . . . . . . . . 1 1 1 . . Scanalyzers 3 | . . . . . . . . . . . . . 1 . 2 Garrison Access 4 | . . . . 1 . . . . 1 . 1 1 . . . Total Hacks 193 | . 7 9 8 10 1 . 19 . 1 . 47 34 23 . 34 Successful 112 | . 3 3 4 4 1 . 19 . 1 . 26 23 10 . 18 Failed 78 | . 4 6 3 6 . . . . . . 21 10 12 . 16 Catastrophic 20 | . . 1 1 2 . . . . . . 7 . 3 . 6 Database Lockouts 4 | . . . 1 . . . . . . . . 2 1 . . Manual 72 | . 4 3 7 6 . . . . . . 12 22 12 . 6 Terminals 112 | . 7 9 8 5 . . . . . . 31 30 13 . 9 Fabricators 24 | . . . . 3 . . . . . . 9 . 4 . 8 Repair Stations 13 | . . . . . . . . . . . 4 . . . 9 Recycling Units 6 | . . . . . . . . . . . 2 2 2 . . Scanalyzers 12 | . . . . . . . . . . . . . 4 . 8 Garrison Access 6 | . . . . 2 . . . . 1 . 1 2 . . . Terminal Hacks 61 | . 3 3 3 . 1 . 19 . . . 11 15 4 . 2 Record 7 | . . . . . . . 1 . . . 2 2 2 . . Part Schematic 13 | . . . 1 . . . 7 . . . 3 2 . . . Robot Schematic 8 | . . . . . . . 8 . . . . . . . . Robot Analysis 1 | . 1 . . . . . . . . . . . . . . Prototype ID Bank 7 | . 1 1 1 . . . 3 . . . . 1 . . . Open Door 2 | . . . . . 1 . . . . . . 1 . . . Level Access Points 2 | . 1 1 . . . . . . . . . . . . . Branch Access Points 1 | . . . . . . . . . . . . 1 . . . Terminal Index 4 | . . 1 1 . . . . . . . . 1 1 . . Fabricator Index 1 | . . . . . . . . . . . . 1 . . . Repair Station Index 2 | . . . . . . . . . . . 1 1 . . . Unreport Threat 1 | . . . . . . . . . . . . 1 . . . Locate Traps 2 | . . . . . . . . . . . 2 . . . . Recall Extermination 2 | . . . . . . . . . . . . 1 1 . . Recall Reinforcements 1 | . . . . . . . . . . . . 1 . . . Zone Layout 5 | . . . . . . . . . . . 3 2 . . . Protovariant Controls 2 | . . . . . . . . . . . . . . . 2 Fabricator Hacks 11 | . . . . 3 . . . . . . 4 . 1 . 3 Network Status 2 | . . . . 1 . . . . . . . . . . 1 Load Schematic 5 | . . . . 1 . . . . . . 2 . 1 . 1 Build 4 | . . . . 1 . . . . . . 2 . . . 1 Repair Station Hacks 11 | . . . . . . . . . . . 4 . . . 7 Scan Component 5 | . . . . . . . . . . . 2 . . . 3 Repair 5 | . . . . . . . . . . . 2 . . . 3 Refit 1 | . . . . . . . . . . . . . . . 1 Recycling Unit Hacks 2 | . . . . . . . . . . . 1 1 . . . Retrieve Components 2 | . . . . . . . . . . . 1 1 . . . Scanalyzer 7 | . . . . . . . . . . . . . 2 . 5 Insert Component 4 | . . . . . . . . . . . . . 2 . 2 Analyze 3 | . . . . . . . . . . . . . . . 3 Garrison Access Hacks 3 | . . . . . . . . . 1 . 1 1 . . . Seal Access 3 | . . . . . . . . . 1 . 1 1 . . . Unauthorized Hacks 17 | . . . 1 1 . . . . . . 5 6 3 . 1 Terminals 14 | . . . 1 . . . . . . . 4 6 3 . . Track 6 | . . . . . . . . . . . 4 1 1 . . Assimilate 2 | . . . 1 . . . . . . . . . 1 . . Botnet 5 | . . . . . . . . . . . . 4 1 . . Operators 1 | . . . . . . . . . . . . 1 . . . Fabricators 2 | . . . . . . . . . . . 1 . . . 1 Report 1 | . . . . . . . . . . . 1 . . . . Siphon 1 | . . . . . . . . . . . . . . . 1 Repair Stations . | . . . . . . . . . . . . . . . . Recycling Units . | . . . . . . . . . . . . . . . . Scanalyzers . | . . . . . . . . . . . . . . . . Garrison Access 1 | . . . . 1 . . . . . . . . . . . Jam 1 | . . . . 1 . . . . . . . . . . . Data Cores Recovered . | . . . . . . . . . . . . . . . . Used . | . . . . . . . . . . . . . . . . Hacking Detections 50 | . 1 2 3 4 . . . . . . 17 7 6 . 10 Full Trace Events 5 | . . . . 1 . . . . . . 1 1 1 . 1 Feedback Events . | . . . . . . . . . . . . . . . . Feedback Blocked . | . . . . . . . . . . . . . . . . Robot Schematics Acquired 8 | . . . . . . . 8 . . . . . . . . Robots Built 3 | . . . . . . . . . . . 3 . . . . Matter 285 | . . . . . . . . . . . 285 . . . . Time 76 | . . . . . . . . . . . 76 . . . . Total Robot Build Rating 15 | . . . . . . . . . . . 15 . . . . Part Schematics Acquired 14 | . . . 1 . . . 7 . . . 3 2 . . 1 Parts Built 3 | . . . . 1 . . . . . . 1 . . . 1 Matter 495 | . . . . 146 . . . . . . 190 . . . 159 Time 274 | . . . . 73 . . . . . . 95 . . . 106 Total Part Build Rating 14 | . . . . 3 . . . . . . 5 . . . 6 Parts Repaired 5 | . . . . . . . . . . . 2 . . . 3 Time 224 | . . . . . . . . . . . 88 . . . 136 Parts Recycled . | . . . . . . . . . . . . . . . . Recycled Matter . | . . . . . . . . . . . . . . . . Retrieved Matter . | . . . . . . . . . . . . . . . . Retrieved Components 2 | . . . . . . . . . . . 2 . . . . Parts Scanalyzed 2 | . . . . . . . . . . . . . 1 . 1 Part Schematics Acquired 1 | . . . . . . . . . . . . . . . 1 Parts Damaged . | . . . . . . . . . . . . . . . . Bothacking | -11 -10 -9 -8 -7 -7 -7 -7 -6 -6 -6 -6 -5 -4 -3 -3 ------------ Run | Scr Mat Mat Mat Fac Low Low Dat Pro Fac Was Fac Fac Fac Res Tes Used RIF Installer . | . . . . . . . . . . . . . . . . Robots Hacked . | . . . . . . . . . . . . . . . . Non-combat . | . . . . . . . . . . . . . . . . Combat . | . . . . . . . . . . . . . . . . Robot Hacks Applied . | . . . . . . . . . . . . . . . . Relay Couplers Released . | . . . . . . . . . . . . . . . . Robots Rewired . | . . . . . . . . . . . . . . . . Allies Hacked . | . . . . . . . . . . . . . . . . Hacks Repelled . | . . . . . . . . . . . . . . . . Allies | -11 -10 -9 -8 -7 -7 -7 -7 -6 -6 -6 -6 -5 -4 -3 -3 -------- Run | Scr Mat Mat Mat Fac Low Low Dat Pro Fac Was Fac Fac Fac Res Tes Total Allies 7 | . . . 1 . . 1 . 1 . . 3 . 1 . . Largest Group 3 | . . . 1 . . 1 . 1 . . 3 . 1 . . Highest-Rated Group 146 | . . . 10 . . 146 . 94 . . 87 . 10 . . Highest-Rated Ally 146 | . . . 10 . . 146 . 94 . . 29 . 10 . . Total Orders 1 | . . . . . . . . . . . 1 . . . . ROAM 1 | . . . . . . . . . . . 1 . . . . Ally Attacks 34 | . . . . . . . . 10 . . 24 . . . . Total Damage 813 | . . . . . . . . 468 . . 345 . . . . Kills 4 | . . . . . . . . 3 . . 1 . . . . Allies Corrupted . | . . . . . . . . . . . . . . . . Allies Melted . | . . . . . . . . . . . . . . . . Intel | -11 -10 -9 -8 -7 -7 -7 -7 -6 -6 -6 -6 -5 -4 -3 -3 ------- Run | Scr Mat Mat Mat Fac Low Low Dat Pro Fac Was Fac Fac Fac Res Tes Robot Analysis Total 1 | . 1 . . . . . . . . . . . . . . Derelict Logs Recovered 3 | . . . . . . 1 . 2 . . . . . . . Drone Launches 5 | . . . . . . . . . . . . 5 . . . Drone Recoveries . | . . . . . . . . . . . . . . . . Exploration | -11 -10 -9 -8 -7 -7 -7 -7 -6 -6 -6 -6 -5 -4 -3 -3 ------------- Run | Scr Mat Mat Mat Fac Low Low Dat Pro Fac Was Fac Fac Fac Res Tes Turns Passed 4910 | 23 79 140 70 293 235 163 32 357 40 110 962 459 466 92 1389 Spaces Moved 8427 | 36 164 327 149 562 420 345 79 639 99 267 1869 876 946 174 1475 Core 448 | 36 102 . . 201 . . . . . . 1 42 12 . 54 Treads . | . . . . . . . . . . . . . . . . Legs . | . . . . . . . . . . . . . . . . Wheels . | . . . . . . . . . . . . . . . . Hover 320 | . . . . . . . . . . . . . . . 320 Flight 7659 | . 62 327 149 361 420 345 79 639 99 267 1868 834 934 174 1101 Fastest Speed 30 | 50 40 40 40 40 40 40 40 40 40 40 37 37 37 37 30 Average Speed 41 | 50 46 40 40 43 40 40 40 40 40 40 38 39 38 37 51 Slowest Speed 450 | 50 50 40 40 50 40 40 40 40 40 40 100 100 50 37 450 Overloaded Moves . | . . . . . . . . . . . . . . . . Propulsion Burnouts . | . . . . . . . . . . . . . . . . Robots Hopped 92 | . . 3 . 2 . 3 . . . 1 39 17 10 4 13 Cave-ins Triggered . | . . . . . . . . . . . . . . . . Exploration Rate (%) 42 | 3 37 50 21 13 67 56 74 74 3 97 55 22 22 6 86 Regions Visited 15 Branch Regions 5 Pre-discovered Areas 2 | . . . . . . 1 1 . . . . . . . . Known Exits Taken 6 | . 1 1 . . . . . . . . 1 1 1 1 . Unknown Exits Taken 7 | 1 . . 1 1 1 1 1 1 . . . . . . . Scrap Searched 7 | . . . . . 2 1 . 4 . . . . . . . Spaces Dug 8 | . . . . . 8 . . . . . . . . . . Terrain Destroyed 52 | . . . . 14 28 . . . . . 10 . . . . Melee . | . . . . . . . . . . . . . . . . Projectile . | . . . . . . . . . . . . . . . . AOE 52 | . . . . 14 28 . . . . . 10 . . . . Actions | -11 -10 -9 -8 -7 -7 -7 -7 -6 -6 -6 -6 -5 -4 -3 -3 --------- Run | Scr Mat Mat Mat Fac Low Low Dat Pro Fac Was Fac Fac Fac Res Tes Total 9641 | 40 165 335 158 596 484 366 78 739 99 269 2061 973 1033 197 2048 Wait 1032 | . . . 9 12 54 23 . 95 . . 205 102 66 25 441 Move 8242 | 35 163 320 148 557 419 339 78 638 99 264 1797 843 928 165 1449 Hop 79 | . . 3 . 2 . 2 . . . 1 32 15 7 4 13 Pick Up 30 | 4 . 4 . 1 2 1 . . . 1 4 1 4 . 8 Fast Attach 76 | 1 2 2 1 8 . . . 3 . 1 10 5 8 . 35 Attach 22 | . . . . 4 3 . . . . . 3 1 4 . 7 Detach 28 | . . 1 . 2 2 . . 1 . . 2 2 4 . 14 Swap 6 | . . . . . . . . . . . 1 . . 2 3 Drop 60 | . . 5 . 1 1 1 . 2 . 2 6 1 8 1 32 Fire 61 | . . . . 8 3 . . . . . 1 1 4 . 44 Melee . | . . . . . . . . . . . . . . . . Ram 3 | . . . . 1 . . . . . . . . . . 2 Kick . | . . . . . . . . . . . . . . . . Crush . | . . . . . . . . . . . . . . . . Escape Stasis . | . . . . . . . . . . . . . . . . Rewire . | . . . . . . . . . . . . . . . . Trap . | . . . . . . . . . . . . . . . . Miscellaneous 2 | . . . . . . . . . . . . 2 . . . Route ------- -11/Scrapyard -10/Materials (discovered 3 exits: *Mat x3) -9/Materials (discovered 4 exits: *Mat x3 / [*Min]) -8/Materials -7/Factory -7/Lower Caves -7/Lower Caves -7/Data Miner -6/Proximity Caves -6/Factory -6/Waste -6/Factory (discovered 2 exits: *Fac x2) -5/Factory (discovered 5 exits: *Fac / Upp x2 / *Ext x2) -4/Factory -3/Research -3/Testing History --------- Turn | Location | Event 5 | -11/Scrapyard | Discovered new exit (range 16) 24 | -11/Scrapyard | Entered Materials 28 | -10/Materials | Identified exit to Materials 103 | -10/Materials | Entered another Materials area 103 | -9/Materials | Evolved 2 slots: Utility x2 167 | -9/Materials | Discovered new exit (range 16) 206 | -9/Materials | Identified exit to Materials 243 | -9/Materials | Entered another Materials area 243 | -8/Materials | Evolved 2 slots: Utility x2 304 | -8/Materials | Central database locked down 307 | -8/Materials | Build established: Mutant 307 | -8/Materials | Discovered new exit (range 17) 313 | -8/Materials | Entered Factory 313 | -7/Factory | Evolved 2 slots: Utility x2 410 | -7/Factory | Discovered new exit (range 19) 454 | -7/Factory | Fabricated System Shield? 538 | -7/Factory | Core integrity fell below 50% 606 | -7/Factory | Entered Lower Caves 671 | -7/Lower Caves | Attacked by a delusional Derelict stockpiling Unaware 726 | -7/Lower Caves | Attacked by a delusional Derelict stockpiling parts 732 | -7/Lower Caves | Encountered a Warlord checkpoint 838 | -7/Lower Caves | Discovered new exit (range 8) 841 | -7/Lower Caves | Entered another Lower Caves area 902 | -7/Lower Caves | Build established: Scout 957 | -7/Lower Caves | Discovered new exit (range 19) 1004 | -7/Lower Caves | Entered Data Miner 1004 | -7/Data Miner | Discovered new exit (range 6) 1010 | -7/Data Miner | Met Data Miner 1020 | -7/Data Miner | Learned location of Section 7 (-2) 1027 | -7/Data Miner | Received God Mode back door access code from Data Miner 1036 | -7/Data Miner | Entered Proximity Caves 1102 | -6/Proximity Caves | Escorted by Enhanced Grunt 1388 | -6/Proximity Caves | Discovered new exit (range 10) 1391 | -6/Proximity Caves | Core integrity fell below 20% 1393 | -6/Proximity Caves | Attracted the attention of an 0b10 checkpoint 1393 | -6/Proximity Caves | Entered Factory 1393 | -6/Factory | Evolved 2 slots: Utility x2 1394 | -6/Factory | Identified exit to Lower Caves 1433 | -6/Factory | Sucked down chute 1433 | -6/Factory | Entered Waste 1433 | -6/Waste | The area was eerily silent 1532 | -6/Waste | Discovered new exit (range 11) 1543 | -6/Waste | Entered Factory 1626 | -6/Factory | Repaired Lgt. Nuclear Core 1688 | -6/Factory | Build established: Mutant 1844 | -6/Factory | Fabricated Imp. Hacking Suite (x1) 1874 | -6/Factory | Spotted B-75 Beast 2140 | -6/Factory | Fabricated G-50 Soldier? 2226 | -6/Factory | Discovered new exit (range 12) 2281 | -6/Factory | Core integrity fell below 50% 2412 | -6/Factory | Repaired Cloaking Device 2503 | -6/Factory | Discovered new exit (range 4) 2504 | -6/Factory | Identified exit to Factory 2505 | -6/Factory | Entered another Factory area 2505 | -5/Factory | Evolved 2 slots: Utility x2 2506 | -5/Factory | Identified exit to Upper Caves 2550 | -5/Factory | Discovered new exit (range 6) 2551 | -5/Factory | Identified exit to Extension 2563 | -5/Factory | Incoming investigation squad redirected 2785 | -5/Factory | Central database locked down 2925 | -5/Factory | Lost 3 parts (1n2u) 2953 | -5/Factory | Discovered new exit (range 21) 2963 | -5/Factory | Identified exit to Factory 2964 | -5/Factory | Entered another Factory area 2964 | -4/Factory | Evolved 2 slots: Utility x2 3176 | -4/Factory | Spotted B-86 Titan 3300 | -4/Factory | Central database locked down 3428 | -4/Factory | Discovered new exit (range 5) 3430 | -4/Factory | Identified exit to Research 3430 | -4/Factory | Entered Research 3430 | -3/Research | Evolved 2 slots: Utility x2 3500 | -3/Research | Discovered new exit (range 14) 3519 | -3/Research | Identified exit to Testing 3522 | -3/Research | Entered Testing 3544 | -3/Testing | Repaired Field Propulsion Drive 3755 | -3/Testing | Found Prototype Device 3755 | -3/Testing | Identified Exp. Thermal Shield 3906 | -3/Testing | Repaired Field Propulsion Drive 3970 | -3/Testing | Repaired Adv. Transmission Jammer 4106 | -3/Testing | Fabricated Adv. System Shield? 4325 | -3/Testing | Found Prototype Launcher 4325 | -3/Testing | Identified Z-bomb Delivery System 4380 | -3/Testing | Found Prototype Ballistic Gun 4380 | -3/Testing | Identified Hyp. Multirail 4409 | -3/Testing | Spotted Alpha 7 4421 | -3/Testing | Build established: Hacker-Mutant 4572 | -3/Testing | Found Prototype Launcher 4572 | -3/Testing | Identified Tesla Bomb Launcher 4577 | -3/Testing | Found Prototype Launcher 4577 | -3/Testing | Identified Adv. Micro-nuke Launcher 4578 | -3/Testing | System corruption reached 10% 4603 | -3/Testing | Found Prototype Protection 4603 | -3/Testing | Identified Centrium Heavy Armor Plating 4824 | -3/Testing | Core integrity fell below 50% 4873 | -3/Testing | Core integrity fell below 20% 4875 | -3/Testing | Found Prototype Processor 4875 | -3/Testing | Identified Spectral Analyzer 4887 | -3/Testing | Lost 9 parts (1p2n5u1w) 4905 | -3/Testing | Spotted Striker 4905 | -3/Testing | Spotted Striker 4907 | -3/Testing | Spotted Alpha 7 4911 | -3/Testing | Stole the SGEMP Prototype 4911 | -3/Testing | Destroyed by Alpha 7 with Multirail Last Messages --------------- 04875_ Acquired Prototype Processor. 04875_ Identified Spectral Analyzer. 04876_ Sonic Impulse Analyzer disabled. 04876_ Discarded Enh. Optical Array. 04879_ Penetrated by Slug. 04885_ >V4UXQNYP#ZCHY>>VR8KKLYZOI1RE6T6SPE& 04894_ Penetrated by Slug. 04894_ Slug penetrates Wall. 04897_ Acquired Lgt. Particle Reactor. 04898_ Slug penetrates Wall. 04901_ System corrupted: Energy discharge (-8). 04906_ Knocked back. 04908_ Penetrated by Slug. 04908_ Slug penetrates Machine. 04909_ Machine disabled. 04910_ Dropped Antimatter Reactor. 04910_ Dropped Lgt. Particle Reactor. 04911_ Acquired SGEMP Prototype. 04911_ Slug penetrates Striker. 04911_ Slug penetrates Machine. Map ----- +----------------------------------------------------+ | ????????????# ] #?! ## | | ????????????################/### | | ??????????????????????# | | ??????????????????????# | | ??????????????????????# ####### | | ??????????????????????+ #?????#### | | ??????????????????????# #????????? | | ??????????????????????# #????????? | | ?????????????????????## ##?????### | | ????????????########## ####### | | ????????????# | | ????????????# | | ????????????# ####### ####### | | ????????????# #?????##+###?????## | | ????????????# #????? ???????? | | ????????????# #???# ?????? | | ????????????# #???#[ ] #???? | | ????????????# #???# #???# | | ???????????## ##??# #???# | | ???????????# #??# #???# | | ???????????## ##??# #???# | | ????????#####//##### #????? | | ????????#""" K 7 ##########+#????? | | ????????#"""K #???????????????? | | ????????#""* ##???????????????? | | ????????#"@* "#????????????????? | | ????????#""" " "#????????????????? | | ????????#""""""""#????????????????? | | ????????##########????????????????? | | ??????????????????????????????????? | | ??????????????????????????????????? | | ??????????????????????????????????? | | ??????????????????????????????????? | | | | | | | | | | | | | | | | | | | | | | | | | | | | | | | | | | | +----------------------------------------------------+ Best States ------------- Heat Dissipation 59 Energy Generation 23 Energy Capacity 600 Matter Stores 300 Matter Capacity 300 Sight Range 24 Terrain Scan Range 16 Terrain Scan Density 410 ECM Strength 3 Jamming Range 16 Cloak Strength 2 Base Temperature (-) 200 Armor Coverage 600 Propulsion Shielding 66 Phase Shifting 10 Evasion (%) 64 Targeting Accuracy 22 Launcher Accuracy 40 Target Analysis 8 Core Analysis 6 Salvage Targeting 3 Offensive Hacking 12 Defensive Hacking 40 Item Schematics ----------------- System Shield | -8/Materials | Hacked Combat Drone Bay | -7/Data Miner | Free Lgt. Regenerative Plating | -7/Data Miner | Free Exp. Terrain Scanner | -7/Data Miner | Free Exp. Targeting Computer | -7/Data Miner | Free Tactical Coordination Suite | -7/Data Miner | Free Exp. ECM Suite | -7/Data Miner | Free Kinetic Spear | -7/Data Miner | Free Imp. Hacking Suite | -6/Factory | Hacked Imp. Transmission Jammer | -6/Factory | Hacked Nuclear Pulse Array | -6/Factory | Hacked Adv. System Shield | -5/Factory | Hacked Imp. Utility Shielding | -5/Factory | Hacked Diametric Drive | -3/Testing | Scanalyzed Robot Schematics ------------------ S-27 Virus | -7/Data Miner | Free G-50 Soldier | -7/Data Miner | Free G-67 Veteran | -7/Data Miner | Free X-72 Disruptor | -7/Data Miner | Free H-66 Slayer | -7/Data Miner | Free P-70 Sage | -7/Data Miner | Free I-36 Angel | -7/Data Miner | Free I-47 Archangel | -7/Data Miner | Free Fabricated ------------ System Shield | x1 | -7/Factory Imp. Hacking Suite | x1 | -6/Factory G-50 Soldier | x3 | -6/Factory | Preloaded Adv. System Shield | x1 | -3/Testing Alien Tech Used ----------------- None Achievements -------------- None Challenges ------------ None Game ------ Seed FactorySpreadSegregator Manual? 0 Play Time 01:39:25 Cumulative 57.1 hours Start 2020.07.20 @ 19:56:18 End 2020.07.20 @ 21:38:33 Sessions 1 Manual Loads 0 Difficulty Rogue Special Mode None Game No. 73 Rogue 73 Adventurer 0 Explorer 0 Win Type - Total 0 Types 0/0/0/0/0/0/0 Lore% 40 Gallery% 53 Achievement% 40 Wizard Run 0 Options --------- ASCII 0 Keyboard 1 Movement Numpad Keybinds 0 Fullscreen 2 Font 18/SmallcapsGlow Map View 76x50 Tactical HUD 1 Map Filters NONE Filters NONE Steam 1 RUN: 4fd062a4-c69d-467c-8197-04c6d4302ee9